fUSD/lending_fUSD_20240415
["ID","MTS","AMOUNT","RATE_DAILY","PERIOD"]
[322634001,1713143433154,-230.4262186,0.0002088,2]
[322634002,1713143433163,-230.4262186,0.0002088,2]
[322634003,1713143433173,-220.10351204,0.00020886,2]
[322634004,1713143433182,-163.27090093,0.00020888,2]
[322634005,1713143433190,-339.42739754,0.00020888,2]
[322634006,1713143433199,-909.92883486,0.00020889,2]
[322634007,1713143433209,-163.27090093,0.0002089,2]
[322634008,1713143433218,-470.66,0.0002089,3]
[322634009,1713143433227,-230.4262186,0.0002089,2]
[322634010,1713143433240,-230.4262186,0.0002089,2]
[322634011,1713143433249,-230.4262186,0.0002089,2]
[322634012,1713143433258,-230.4262186,0.0002089,2]
[322634013,1713143433268,-230.4262186,0.0002089,2]
[322634014,1713143433277,-230.4262186,0.0002089,2]
[322634015,1713143433286,-230.4262186,0.0002089,2]
[322634016,1713143433295,-230.4262186,0.0002089,2]
[322634017,1713143433305,-230.4262186,0.0002089,2]
[322634018,1713143433314,-230.4262186,0.0002089,2]
[322634019,1713143433323,-230.4262186,0.0002089,2]
[322634020,1713143433334,-230.4262186,0.0002089,2]
[322634021,1713143433342,-230.4262186,0.0002089,2]
[322634022,1713143433352,-230.4262186,0.0002089,2]
[322634023,1713143433360,-230.4262186,0.0002089,2]
[322634024,1713143433370,-230.4262186,0.0002089,2]
[322634025,1713143433379,-230.4262186,0.0002089,2]
[322634026,1713143433388,-230.4262186,0.0002089,2]
[322634027,1713143433397,-230.4262186,0.0002089,2]
[322634028,1713143433406,-230.4262186,0.0002089,2]
[322634029,1713143433416,-230.4262186,0.0002089,2]
[322634030,1713143433426,-230.4262186,0.0002089,2]
[322634031,1713143433439,-230.4262186,0.0002089,2]
[322634032,1713143433449,-230.4262186,0.0002089,2]
[322634033,1713143433458,-230.4262186,0.0002089,2]
[322634034,1713143433467,-230.4262186,0.0002089,2]
[322634035,1713143433478,-230.4262186,0.0002089,2]
[322634036,1713143433490,-230.4262186,0.0002089,2]
[322634037,1713143433499,-230.4262186,0.0002089,2]
[322634038,1713143433511,-230.4262186,0.0002089,2]
[322634039,1713143433521,-230.4262186,0.0002089,2]
[322634040,1713143433531,-230.4262186,0.0002089,2]
[322634041,1713143433541,-230.4262186,0.0002089,2]
[322634042,1713143433550,-230.4262186,0.0002089,2]
[322634043,1713143433560,-230.4262186,0.0002089,2]
[322634044,1713143433570,-230.4262186,0.0002089,2]
[322634045,1713143433579,-230.4262186,0.0002089,2]
[322634046,1713143433589,-230.4262186,0.0002089,2]
[322634047,1713143433599,-230.4262186,0.0002089,2]
[322634048,1713143433608,-163.27090093,0.00020891,2]
[322634049,1713143433617,-163.27090093,0.00020893,2]
[322634050,1713143433626,-163.27090093,0.00020894,2]
[322634051,1713143433636,-163.27090093,0.00020896,2]
[322634052,1713143433645,-163.27090093,0.00020897,2]
[322634053,1713143433654,-163.27090093,0.00020899,2]
[322634054,1713143433664,-213.0,0.000209,2]
[322634055,1713143433673,-170547.1194,0.000209,2]
[322634056,1713143433683,-10816.5023,0.000209,2]
[322634057,1713143433693,-3954.8529,0.000209,2]
[322634058,1713143433703,-220.10351204,0.000209,2]
[322634059,1713143433713,-163.27090093,0.000209,2]
[322634060,1713143433722,-168.27932943,0.000209,2]
[322634061,1713143433736,-909.92883486,0.000209,2]
[322634062,1713143433746,-181.68754616,0.0002097,2]
[322634063,1713143433755,-267.89288173,0.00020978,2]
[322634064,1713143433765,-1504.61,0.00020979,2]
[322634065,1713143433774,-86452.97055499,0.0002098,2]
[322634066,1713143434715,-160.25,0.0002089,2]
[322634067,1713143434725,-949.55142368,0.0002098,2]
[322634070,1713143438365,-358.49866396,0.00020867,2]
[322634071,1713143438375,-358.49866396,0.00020878,2]
[322634072,1713143438384,-160.25,0.0002097,2]
[322634073,1713143438393,-160.25,0.0002097,2]
[322634074,1713143438403,-160.25,0.0002097,2]
[322634075,1713143438412,-987605.51457522,0.0002098,2]
[322634076,1713143438421,-160.25,0.00020988,2]
[322634077,1713143438431,-160.25,0.00020988,2]
[322634078,1713143438444,-385.45754544,0.0002099,2]
[322634079,1713143438453,-152038.9090564,0.0002099,2]
[322634080,1713143438462,-205.2264619,0.0002099,2]
[322634081,1713143438473,-16658.831016,0.0002099,2]
[322634082,1713143438483,-22992.2899073,0.0002099,2]
[322634083,1713143438496,-2586.5106078,0.0002099,2]
[322634084,1713143438505,-982.6853474,0.0002099,2]
[322634085,1713143438515,-4520.7444606,0.0002099,2]
[322634086,1713143438525,-966.6368489,0.0002099,2]
[322634087,1713143438535,-6116.3461036,0.0002099,2]
[322634088,1713143438545,-1738.8815102,0.0002099,2]
[322634089,1713143438554,-179.3188434,0.00020998,2]
[322634091,1713143438564,-156.92121906,0.00020998,2]
[322634093,1713143438573,-155.0,0.00020998,2]
[322634095,1713143438583,-495.37296188,0.00020998,2]
[322634097,1713143438593,-300.99041887,0.00020998,2]
[322634099,1713143438602,-161.16450246,0.00020998,2]
[322634101,1713143438611,-251.43765178,0.00020998,2]
[322634103,1713143438621,-1090901.98300799,0.00020998,2]
[322634105,1713143438630,-157.04151,0.00020999,2]
[322634107,1713143438640,-157.04151,0.00020999,2]
[322634109,1713143438649,-157.04151,0.00020999,2]
[322634111,1713143438659,-157.04151,0.00020999,2]
[322634113,1713143438668,-157.04151,0.00020999,2]
[322634115,1713143438677,-157.04151,0.00020999,2]
[322634117,1713143438687,-157.04151,0.00020999,2]
[322634119,1713143438696,-157.04151,0.00020999,2]
[322634121,1713143438705,-157.04151,0.00020999,2]
[322634123,1713143438714,-157.04151,0.00020999,2]
[322634125,1713143438723,-157.04151,0.00020999,2]
[322634127,1713143438733,-157.04151,0.00020999,2]
[322634129,1713143438744,-157.04151,0.00020999,2]
[322634131,1713143438753,-157.04151,0.00020999,2]
[322634133,1713143438762,-157.04151,0.00020999,2]
[322634135,1713143438772,-157.04151,0.00020999,2]
[322634137,1713143438782,-157.04151,0.00020999,2]
[322634139,1713143438791,-157.04151,0.00020999,2]
[322634141,1713143438801,-157.04151,0.00020999,2]
[322634143,1713143438810,-157.04151,0.00020999,2]
[322634145,1713143438819,-157.04151,0.00020999,2]
[322634147,1713143438828,-157.04151,0.00020999,2]
[322634149,1713143438837,-157.04151,0.00020999,2]
[322634151,1713143438848,-157.04151,0.00020999,2]
[322634153,1713143438857,-157.04151,0.00020999,2]
[322634155,1713143438866,-157.04151,0.00020999,2]
[322634157,1713143438875,-157.04151,0.00020999,2]
[322634160,1713143438884,-157.04151,0.00020999,2]
[322634162,1713143438893,-157.04151,0.00020999,2]
[322634164,1713143438902,-157.04151,0.00020999,2]
[322634166,1713143438911,-157.04151,0.00020999,2]
[322634168,1713143438920,-167.5226688,0.00020999,2]
[322634169,1713143438929,-150.0,0.00020999,2]
[322634172,1713143438939,-150.0,0.00020999,2]
[322634173,1713143438948,-150.0,0.00020999,2]
[322634175,1713143438957,-150.0,0.00020999,2]
[322634177,1713143438966,-150.0,0.00020999,2]
[322634179,1713143438976,-189.52971142,0.00020999,2]
[322634181,1713143438989,-337.30890918,0.00020999,2]
[322634184,1713143438998,-2074580.54265014,0.00021,2]
[322634186,1713143439008,-4146613.23787891,0.00021,2]
[322634187,1713143439017,-543.84,0.00021,2]
[322634189,1713143439026,-715.48314253,0.00021,2]
[322634191,1713143439035,-502.24,0.00021,2]
[322634193,1713143439044,-1207950.91017084,0.00021,2]
[322634195,1713143439053,-150.0,0.00021,2]
[322634197,1713143439061,-150.0,0.00021,2]
[322634199,1713143439071,-150.0,0.00021,2]
[322634201,1713143439080,-150.0,0.00021,2]
[322634204,1713143439091,-263.743,0.00021,2]
[322634205,1713143439101,-253.729,0.00021,2]
[322634207,1713143439110,-827323.15612436,0.00021,2]
[322634361,1713143440621,-327.00976594,0.00021,2]
[322634521,1713143442093,-6407.17536101,0.00021,2]
[322634524,1713143442113,-655.97934,0.00021,2]
[322634551,1713143442343,-1584.42179435,0.00021,2]
[322634730,1713143443493,-1.57321965,0.00020866,2]
[322634834,1713143446992,-312.1757311,0.00020866,2]
[322634835,1713143447005,-291.25104987,0.00020866,2]
[322634836,1713143447014,-358.49866396,0.00020889,2]
[322634837,1713143447024,-150.01,0.00020999,2]
[322634838,1713143447033,-1347.51766648,0.00020999,2]
[322634839,1713143447043,-809.74171549,0.00020999,2]
[322634840,1713143447053,-14765.4740806,0.00021,2]
[322634841,1713143447125,-2356.076,0.00021,2]
[322634842,1713143447136,-295.802,0.00021,2]
[322634844,1713143941923,425.39,0.00018396,2]
[322634845,1713143972571,750.0,0.00022,10]
[322634867,1713144577530,404.12,0.00017969,2]
[322634899,1713144632454,-822.06775245,0.00019809,2]
[322634901,1713144632464,-1347.51766648,0.0001981,2]
[322634903,1713144632473,-84.44707614,0.00019811,2]
[322634906,1713144632500,-2183.7396,0.00019811,2]
[322634908,1713144632534,-900.13310641,0.00019811,2]
[322634909,1713144632543,-163.06218409,0.00019812,2]
[322634910,1713144632552,-412.33,0.00019854,2]
[322634911,1713144632561,-188.69,0.00019894,2]
[322634912,1713144632570,-460.44,0.00019912,2]
[322634913,1713144632580,-155.0,0.0002,2]
[322634914,1713144632589,-700.0,0.000202,2]
[322634915,1713144632599,-404.12,0.00020233,2]
[322634916,1713144632608,-613.65,0.00020233,2]
[322634917,1713144632618,-1000.0,0.00020314,2]
[322634918,1713144632627,-1227.53680782,0.00020449,2]
[322634919,1713144632636,-1227.53680782,0.00020649,2]
[322634920,1713144632644,-150.0,0.000207,2]
[322634921,1713144632655,-153.6,0.000207,2]
[322634922,1713144632664,-267.38,0.000207,2]
[322634923,1713144632674,-897.68691,0.0002079,2]
[322634924,1713144632684,-157.65103624,0.0002079,2]
[322634925,1713144632694,-200.0,0.00020832,2]
[322634926,1713144632703,-1000.0,0.00020832,2]
[322634927,1713144632714,-200.0,0.00020832,2]
[322634928,1713144632723,-500.0,0.00020832,2]
[322634929,1713144632733,-167.64,0.0002088,2]
[322634930,1713144632742,-2951.13446519,0.00020899,2]
[322635077,1713144640241,-2735.58311029,0.00020899,2]
[322635079,1713144640253,-3847.57032452,0.00020899,2]
[322635081,1713144640262,-2462.8157,0.000209,2]
[322635083,1713144640271,-1473.19089175,0.000209,2]
[322635085,1713144640281,-513.78160399,0.000209,2]
[322635087,1713144640291,-796.15,0.00020989,3]
[322635089,1713144640300,-224.21255167,0.00020996,2]
[322635091,1713144640309,-1004.50351034,0.00020998,2]
[322635093,1713144640319,-537.1842395,0.00020998,2]
[322635095,1713144640329,-1819.50601345,0.00020998,2]
[322635097,1713144640339,-9668.46960101,0.00020999,2]
[322635099,1713144640348,-150.01,0.00020999,2]
[322635101,1713144640358,-4943.04151,0.00020999,2]
[322635103,1713144640367,-2478.2902211,0.00020999,2]
[322635105,1713144640376,-8482.5781267,0.00020999,2]
[322635107,1713144640387,-574.73077865,0.00020999,2]
[322635109,1713144640396,-4562.2361308,0.00020999,2]
[322635111,1713144640409,-150.0,0.00020999,2]
[322635113,1713144640420,-150.0,0.00020999,2]
[322635115,1713144640429,-150.0,0.00020999,2]
[322635117,1713144640439,-150.0,0.00020999,2]
[322635119,1713144640448,-150.0,0.00020999,2]
[322635121,1713144640458,-189.52971142,0.00020999,2]
[322635123,1713144640470,-337.30890918,0.00020999,2]
[322635125,1713144640480,-152.42101689,0.00021,2]
[322635127,1713144640490,-8220691.99922522,0.00021,2]
[322635130,1713144640502,-4006.87883681,0.00021,2]
[322635232,1713144641470,-1716.1872106,0.00021,2]
[322635234,1713144641482,-312.43499999,0.00021,2]
[322635251,1713144641624,-565.90136369,0.000209,2]
[322635253,1713144641634,-213.31371938,0.00021,2]
[322635500,1713144644191,-150.01,0.00020999,2]
[322635501,1713144644201,-3432.56358471,0.00021,2]
[322635502,1713144644214,-309.09585313,0.00021,2]
[322635503,1713144644318,-35125.55810943,0.00021,2]
[322635504,1713144644330,-32829.64480489,0.00021,2]
[322635505,1713144645088,-670.39229512,0.00021,2]
[322635508,1713144647209,-404.0,0.0002099,2]
[322635509,1713144647243,-849.0,0.0002099,2]
[322635510,1713144647252,-154.18,0.0002099,2]
[322635511,1713144647261,-155.0,0.00020999,2]
[322635512,1713144647271,-949.0461818,0.00021,2]
[322635513,1713144647326,-1134.1974868,0.00021,2]
[322635516,1713144663107,150.5,0.0002099,15]
[322635517,1713144663832,279.31,0.0002098,15]
[322635518,1713144663916,194.32,0.0002099,15]
[322635519,1713144694382,6919.58,0.00028,30]
[322635521,1713144782911,150.5,0.0002099,15]
[322635522,1713144783413,150.5,0.0002098,15]
[322635524,1713145292485,377.64,0.00018298,2]
[322635526,1713145416817,500.0,0.00022,10]
[322635527,1713145458580,2412.85,0.00017,2]
[322635528,1713145458607,20.63642101,0.00017,2]
[322635529,1713145458630,150.0,0.00017,2]
[322635530,1713145458657,150.0,0.00017,2]
[322635531,1713145458683,150.0,0.00017,2]
[322635532,1713145458712,17116.51357899,0.00017,2]
[322635533,1713145467806,3000.0,0.00018,2]
[322635534,1713145529738,223.48,0.00022,10]
[322635547,1713145670878,-198.0,0.00025802,28]
[322635552,1713145801026,358.75,0.00017965,2]
[322635579,1713145831894,-720.26587227,0.00019864,2]
[322635580,1713145831953,-273.05218967,0.00019864,2]
[322635581,1713145832082,-274.85691421,0.00019864,2]
[322635582,1713145832141,-79.67832109,0.00019864,2]
[322635583,1713145832151,-250.0,0.00019865,2]
[322635584,1713145832160,-1645.14417891,0.00019881,2]
[322635589,1713145837611,-5649.51582109,0.00019881,2]
[322635590,1713145837621,-3040.73,0.00019881,2]
[322635591,1713145837630,-224.65,0.00019886,2]
[322635592,1713145837640,-155.0,0.0002,2]
[322635593,1713145837650,-321.27,0.00020038,2]
[322635594,1713145837659,-358.75,0.00020229,2]
[322635595,1713145837668,-1301.37622842,0.00020315,2]
[322635596,1713145837678,-605.61753524,0.00020362,2]
[322635597,1713145837687,-150.0,0.00020384,2]
[322635598,1713145837697,-150.0,0.000205,2]
[322635599,1713145837706,-150.99,0.000205,2]
[322635600,1713145837716,-10174.85,0.000205,2]
[322635601,1713145837726,-1000.0,0.00020636,2]
[322635602,1713145837736,-3461.99340278,0.00020744,2]
[322635603,1713145837745,-1301.37622842,0.00020761,2]
[322635604,1713145837755,-200.0,0.00020832,2]
[322635605,1713145837771,-500.0,0.00020832,2]
[322635606,1713145837780,-200.0,0.00020832,2]
[322635607,1713145837790,-3944.84678494,0.0002089,2]
[322635608,1713145837799,-1826.83544304,0.00020899,2]
[322635609,1713145837808,-721.62912842,0.00020899,2]
[322635610,1713145837818,-1826.83544304,0.00020899,2]
[322635611,1713145837827,-721.62912836,0.00020899,2]
[322635612,1713145837836,-721.62912836,0.00020899,2]
[322635613,1713145837846,-1826.83544304,0.00020899,2]
[322635614,1713145837855,-721.62912836,0.00020899,2]
[322635615,1713145837865,-721.62912836,0.00020899,2]
[322635616,1713145837875,-1826.83544304,0.000209,2]
[322635617,1713145837884,-721.62912836,0.000209,2]
[322635618,1713145837893,-721.62912836,0.000209,2]
[322635619,1713145837903,-1826.83544304,0.000209,2]
[322635620,1713145837912,-721.62912836,0.000209,2]
[322635621,1713145837922,-721.62912836,0.000209,2]
[322635622,1713145837931,-182.7965,0.000209,2]
[322635623,1713145837941,-1192.1323,0.000209,2]
[322635624,1713145837950,-581.9385,0.000209,2]
[322635625,1713145837959,-2407.6997,0.000209,2]
[322635626,1713145837969,-360.5213,0.000209,2]
[322635627,1713145837979,-1826.83544304,0.000209,2]
[322635628,1713145837989,-721.62912836,0.000209,2]
[322635629,1713145837999,-521.64651963,0.000209,2]
[322635630,1713145838011,-185.06123643,0.000209,2]
[322635631,1713145838020,-156.61465412,0.0002099,2]
[322635632,1713145838030,-156.61465412,0.0002099,2]
[322635633,1713145838039,-156.61465412,0.0002099,2]
[322635634,1713145838049,-163.2171735,0.00020996,2]
[322635635,1713145838059,-3900.4160489,0.00020996,2]
[322635636,1713145838068,-1709.7676433,0.00020996,2]
[322635637,1713145838078,-26504.0085981,0.00020996,2]
[322635638,1713145838090,-704.2718948,0.00020996,2]
[322635639,1713145838100,-1819.50601345,0.00020998,2]
[322635640,1713145838109,-9739.39077117,0.00020998,2]
[322635641,1713145838119,-251.44050334,0.00020998,2]
[322635642,1713145838128,-161.78853762,0.00020998,2]
[322635643,1713145838138,-157.09515408,0.00020998,2]
[322635644,1713145838148,-150.01,0.00020999,2]
[322635645,1713145838157,-157.04151,0.00020999,2]
[322635646,1713145838167,-157.04151,0.00020999,2]
[322635647,1713145838177,-157.04151,0.00020999,2]
[322635648,1713145838187,-157.04151,0.00020999,2]
[322635649,1713145838199,-157.04151,0.00020999,2]
[322635650,1713145838209,-157.04151,0.00020999,2]
[322635651,1713145838220,-157.04151,0.00020999,2]
[322635652,1713145838229,-157.04151,0.00020999,2]
[322635653,1713145838239,-157.04151,0.00020999,2]
[322635654,1713145838248,-157.04151,0.00020999,2]
[322635655,1713145838262,-157.04151,0.00020999,2]
[322635656,1713145838272,-157.04151,0.00020999,2]
[322635657,1713145838281,-157.04151,0.00020999,2]
[322635658,1713145838290,-157.04151,0.00020999,2]
[322635659,1713145838302,-157.04151,0.00020999,2]
[322635660,1713145838313,-157.04151,0.00020999,2]
[322635661,1713145838322,-157.04151,0.00020999,2]
[322635662,1713145838332,-157.04151,0.00020999,2]
[322635664,1713145838342,-157.04151,0.00020999,2]
[322635666,1713145838352,-157.04151,0.00020999,2]
[322635668,1713145838361,-157.04151,0.00020999,2]
[322635670,1713145838372,-157.04151,0.00020999,2]
[322635672,1713145838383,-157.04151,0.00020999,2]
[322635674,1713145838393,-157.04151,0.00020999,2]
[322635676,1713145838403,-157.04151,0.00020999,2]
[322635678,1713145838412,-157.04151,0.00020999,2]
[322635680,1713145838424,-157.04151,0.00020999,2]
[322635682,1713145838433,-157.04151,0.00020999,2]
[322635684,1713145838443,-157.04151,0.00020999,2]
[322635686,1713145838452,-157.04151,0.00020999,2]
[322635688,1713145838461,-151.04151,0.00020999,2]
[322635690,1713145838471,-153.04151,0.00020999,2]
[322635692,1713145838481,-150.0,0.00020999,2]
[322635695,1713145838491,-150.0,0.00020999,2]
[322635696,1713145838500,-150.0,0.00020999,2]
[322635698,1713145838514,-150.0,0.00020999,2]
[322635700,1713145838523,-150.0,0.00020999,2]
[322635703,1713145838533,-199.93854442,0.00020999,2]
[322635705,1713145838543,-8147710.73969333,0.00021,2]
[322635866,1713145840149,-862.40523306,0.00021,2]
[322635965,1713145841161,-653.1525,0.00021,2]
[322635967,1713145841173,-7746.83783391,0.00021,2]
[322635969,1713145841184,-8947.21879473,0.00021,2]
[322635971,1713145841196,-4174.7385858,0.00021,2]
[322635973,1713145841209,-3067.6397999,0.00021,2]
[322636182,1713145843284,-0.18806962,0.00020999,2]
[322636188,1713145843325,-149.82193038,0.00020999,2]
[322636190,1713145843335,-152.96035285,0.00021,2]
[322636191,1713145843345,-62265.82408852,0.00021,2]
[322636201,1713145843433,-364.15206522,0.00021,2]
[322636205,1713145843461,-1574.59925112,0.00021,2]
[322636208,1713145843473,-20337.1346328,0.00021,2]
[322636214,1713145843528,-1978.18678812,0.00021,2]
[322636281,1713145846684,-1347.85329724,0.00020998,2]
[322636282,1713145846694,-4089.71497244,0.00021,2]
[322636283,1713145846811,-7148.8,0.00021,2]
[322636284,1713145846822,-602.34,0.00021,2]
[322636285,1713145846834,-546.49192064,0.00021,2]
[322636286,1713145846867,-546.45220134,0.00021,2]
[322636287,1713145846879,-480.98295491,0.00021,2]
[322636292,1713146255308,8025.0,0.00028208,120]
[322636332,1713147031851,-522.3297664,0.00018223,2]
[322636333,1713147031907,-339.54672966,0.00018223,2]
[322636334,1713147031924,-337.62147344,0.00018223,2]
[322636335,1713147031935,-370.54,0.00018224,2]
[322636336,1713147031947,-719.13477838,0.00018839,2]
[322636337,1713147031959,-753.28341375,0.00018897,2]
[322636338,1713147031971,-156.02607576,0.00018898,2]
[322636339,1713147031983,-1182.0,0.00019671,2]
[322636340,1713147031994,-524.0,0.00019671,2]
[322636341,1713147032006,-155.0,0.00020143,2]
[322636342,1713147032018,-224.65,0.00020144,2]
[322636343,1713147032031,-1000.0,0.00020298,2]
[322636344,1713147032043,-2302.48,0.00020302,2]
[322636345,1713147032054,-698.08,0.00020341,2]
[322636346,1713147032065,-1120.86,0.00020441,2]
[322636348,1713147032076,-370.54,0.00020488,2]
[322636351,1713147032088,-150.0,0.000205,2]
[322636353,1713147032099,-1182.0,0.00020767,2]
[322636355,1713147032110,-524.0,0.00020767,2]
[322636357,1713147032122,-200.0,0.00020832,2]
[322636359,1713147032132,-1000.0,0.00020832,2]
[322636361,1713147032143,-8627.59181592,0.000209,2]
[322636363,1713147032154,-1780.92646692,0.000209,2]
[322636365,1713147032168,-251.44050334,0.00020998,2]
[322636366,1713147032179,-161.78853762,0.00020998,2]
[322636367,1713147032191,-157.09515408,0.00020998,2]
[322636368,1713147032202,-1819.50601345,0.00020998,2]
[322636369,1713147032214,-9739.39077117,0.00020998,2]
[322636370,1713147032226,-150.99,0.00020998,2]
[322636371,1713147032236,-1094.07205573,0.00020999,2]
[322636372,1713147032247,-155.55110566,0.00020999,3]
[322636373,1713147032259,-150.01,0.00020999,2]
[322636374,1713147032270,-157.041411,0.00020999,2]
[322636375,1713147032282,-157.041411,0.00020999,2]
[322636376,1713147032293,-157.041411,0.00020999,2]
[322636378,1713147032304,-157.041411,0.00020999,2]
[322636380,1713147032315,-157.041411,0.00020999,2]
[322636382,1713147032325,-157.041411,0.00020999,2]
[322636384,1713147032336,-157.041411,0.00020999,2]
[322636387,1713147032348,-157.041411,0.00020999,2]
[322636389,1713147032358,-157.041411,0.00020999,2]
[322636391,1713147032370,-157.041411,0.00020999,2]
[322636393,1713147032381,-157.041411,0.00020999,2]
[322636395,1713147032392,-157.041411,0.00020999,2]
[322636397,1713147032403,-157.041411,0.00020999,2]
[322636399,1713147032417,-157.041411,0.00020999,2]
[322636402,1713147032430,-157.041411,0.00020999,2]
[322636404,1713147032442,-157.041411,0.00020999,2]
[322636406,1713147032454,-157.041411,0.00020999,2]
[322636408,1713147032466,-157.041411,0.00020999,2]
[322636410,1713147032477,-157.041411,0.00020999,2]
[322636413,1713147032489,-157.041411,0.00020999,2]
[322636415,1713147032500,-157.041411,0.00020999,2]
[322636417,1713147032512,-157.041411,0.00020999,2]
[322636419,1713147032525,-4.14546306,0.00020999,2]
[322636422,1713147032539,-152.89594794,0.00020999,2]
[322636424,1713147032551,-157.041411,0.00020999,2]
[322636426,1713147032562,-157.041411,0.00020999,2]
[322636428,1713147032572,-142.70123004,0.00020999,2]
[322636436,1713147032639,-14.34018096,0.00020999,2]
[322636439,1713147032652,-157.041411,0.00020999,2]
[322636441,1713147032666,-157.041411,0.00020999,2]
[322636443,1713147032678,-157.041411,0.00020999,2]
[322636445,1713147032688,-157.041411,0.00020999,2]
[322636447,1713147032699,-151.041411,0.00020999,2]
[322636449,1713147032710,-153.041411,0.00020999,2]
[322636451,1713147032721,-150.0,0.00020999,2]
[322636453,1713147032733,-53.39418568,0.00020999,2]
[322636457,1713147038074,-96.60581432,0.00020999,2]
[322636458,1713147038084,-150.0,0.00020999,2]
[322636459,1713147038094,-150.0,0.00020999,2]
[322636460,1713147038103,-150.0,0.00020999,2]
[322636461,1713147038113,-199.93854442,0.00020999,2]
[322636462,1713147038122,-150.01,0.00020999,2]
[322636463,1713147038131,-2390.59916819,0.00021,2]
[322636464,1713147038200,-8165955.23753741,0.00021,2]
[322636468,1713147038296,-1864.05335958,0.00021,2]
[322636470,1713147038307,-57123.18959455,0.00021,2]
[322636472,1713147038318,-65419.96293761,0.00021,2]
[322636490,1713147038482,-278.98616856,0.00021,2]
[322636676,1713147040207,-729.49678174,0.00021,2]
[322636678,1713147040219,-2665.35999999,0.00021,2]
[322636680,1713147040230,-742629.66764498,0.00021,2]
[322636953,1713147043276,-150.01,0.00020999,2]
[322636954,1713147043285,-155.37090645,0.00021,2]
[322636964,1713148016693,-4578.27056581,0.00018862,2]
[322636965,1713148016714,-999.58164125,0.00018925,2]
[322636966,1713148016735,-368.03,0.00018926,2]
[322636967,1713148016756,-1016.0,0.00019178,2]
[322636968,1713148016776,-507.0,0.00019178,2]
[322636969,1713148016796,-665.296163,0.00020069,2]
[322636970,1713148016817,-155.0,0.0002017,2]
[322636971,1713148016841,-1016.0,0.00020274,2]
[322636972,1713148016861,-507.0,0.00020274,2]
[322636973,1713148016885,-214.18,0.00020646,2]
[322636974,1713148016910,-1000.0,0.00020754,2]
[322636975,1713148016932,-1000.0,0.00020831,2]
[322636976,1713148016954,-303.009043,0.00020832,2]
[322636977,1713148016974,-1000.0,0.00020832,2]
[322636978,1713148016995,-500.0,0.00020832,2]
[322636979,1713148017016,-200.0,0.00020832,2]
[322636980,1713148017035,-499.99,0.00020889,2]
[322636981,1713148017055,-167.5096902,0.000209,2]
[322636982,1713148017075,-1464.84764594,0.000209,2]
[322636983,1713148017096,-2357.21045208,0.000209,2]
[322636984,1713148017116,-5407.88703467,0.000209,2]
[322636985,1713148017137,-11127.96946536,0.000209,2]
[322636986,1713148017157,-339.0981121,0.00020998,2]
[322636987,1713148017176,-566.12866481,0.00020998,2]
[322636988,1713148017197,-150.01,0.00020999,2]
[322636989,1713148017218,-157.041411,0.00020999,2]
[322636990,1713148017239,-157.041411,0.00020999,2]
[322636991,1713148017261,-157.041411,0.00020999,2]
[322636992,1713148017282,-157.041411,0.00020999,2]
[322636993,1713148017302,-157.041411,0.00020999,2]
[322636994,1713148017325,-157.041411,0.00020999,2]
[322636995,1713148017349,-157.041411,0.00020999,2]
[322636996,1713148017373,-157.041411,0.00020999,2]
[322636997,1713148017395,-157.041411,0.00020999,2]
[322636998,1713148017416,-157.041411,0.00020999,2]
[322636999,1713148017439,-157.041411,0.00020999,2]
[322637000,1713148017461,-157.041411,0.00020999,2]
[322637001,1713148017482,-157.041411,0.00020999,2]
[322637002,1713148017505,-157.041411,0.00020999,2]
[322637003,1713148017528,-157.041411,0.00020999,2]
[322637004,1713148017551,-157.041411,0.00020999,2]